bitfinex/quotes_ETHUSD_20250724
["timestamp","ask_amount","ask_price","bid_price","bid_amount"]
[1753358389211,11.42174335,3660.8,3660.7,0.06]
[1753358390050,11.79154335,3660.8,3660.7,0.06]
[1753358390650,11.42174335,3660.8,3660.7,0.06]
[1753358395229,10.97644335,3660.8,3660.7,0.06]
[1753358395830,11.13000314,3660.8,3660.7,0.06]
[1753358396071,11.58810314,3660.8,3660.7,0.06]
[1753358396868,5.73171797,3660.7,3660.6,1e-08]
[1753358397171,6.28337776,3660.7,3660.6,1e-08]
[1753358398941,10.58337776,3660.7,3660.6,1e-08]
[1753358400035,11.17291539,3660.7,3660.6,1e-08]
[1753358400239,5.73209114,3660.2,3660.1,0.041]
[1753358400467,11.92331555,3660.2,3660.1,0.041]
[1753358400671,15.53421555,3660.2,3660.1,0.041]
[1753358401074,11.23521555,3660.2,3660.1,0.041]
[1753358401289,16.12379267,3660.2,3660.1,0.041]
[1753358401588,15.53421555,3660.2,3660.1,0.041]
[1753358402291,15.99231555,3660.2,3660.1,0.041]
[1753358402642,6.32699114,3660.2,3660.1,0.041]
[1753358402891,10.16789114,3660.2,3660.1,0.041]
[1753358403189,10.7570642,3660.2,3660.1,0.041]
[1753358403359,10.16789114,3660.2,3660.1,0.041]
[1753358403540,5.86889114,3660.2,3660.1,0.041]
[1753358403741,2.86889114,3660.2,3660.1,0.4994]
[1753358403963,2.86889114,3660.2,3660.1,1.7769]
[1753358404168,7.16789114,3660.2,3660.1,1.7769]
[1753358404368,7.16789114,3660.2,3660.1,0.8612]
[1753358404542,7.16789114,3660.2,3660.1,1.7769]
[1753358404753,2.86889114,3660.2,3660.1,1.7769]
[1753358404953,2.73365717,3660.8,3660.1,1.95479]
[1753358404954,0.1368,3660.3,3660.1,1.95479]
[1753358405166,0.002,3660.8,3660.1,1.95479]
[1753358405167,0.002,3660.8,3660.3,0.7641]
[1753358405367,2.73188373,3660.5,3660.3,0.7641]
[1753358405575,7.03094186,3660.4,3660.3,0.7641]
[1753358406183,7.03094186,3660.4,3660.3,1.2225]
[1753358406391,7.03094186,3660.4,3660.3,0.9157]
[1753358406550,2.73194186,3660.4,3660.3,0.9157]
[1753358406752,7.03094186,3660.4,3660.3,0.9157]
[1753358407203,7.03094186,3660.4,3660.3,0.9757]
[1753358408294,7.03094186,3660.4,3660.3,0.5184]
[1753358408794,7.03094186,3660.4,3660.3,0.06]
[1753358409193,7.18444238,3660.4,3660.3,0.06]
[1753358409502,7.18446002,3660.4,3660.3,0.06]
[1753358410008,7.18346002,3660.4,3660.3,0.5184]
[1753358410303,2.73194186,3660.4,3660.3,0.9757]
[1753358410459,7.02994186,3660.4,3660.3,0.06]
[1753358410661,7.18346061,3660.4,3660.3,0.06]
[1753358410861,7.06079061,3660.4,3660.3,0.06]
[1753358411097,7.06079061,3660.4,3660.3,0.5184]
[1753358411394,6.90727186,3660.4,3660.3,0.5184]
[1753358411581,6.90727186,3660.4,3660.3,0.9757]
[1753358411787,2.60927186,3660.4,3660.3,0.9757]
[1753358411986,6.90727186,3660.4,3660.3,1.7632]
[1753358412168,2.60927186,3660.4,3660.3,1.94362]
[1753358412375,6.90727186,3660.4,3660.3,1.94362]
[1753358412596,6.90727186,3660.4,3660.3,1.7632]
[1753358413280,2.60927186,3660.4,3660.3,1.7632]
[1753358413488,2.73367175,3660.8,3660.3,1.7632]
[1753358413489,2.73188688,3660.5,3660.3,1.7632]
[1753358413802,2.73188688,3660.5,3660.4,0.9157]
[1753358414020,0.002,3660.8,3660.4,0.9157]
[1753358414221,2.73179323,3660.6,3660.4,0.18042]
[1753358414385,2.73179323,3660.6,3660.5,0.9157]
[1753358416596,4.4338,3660.7,3660.5,0.9157]
[1753358416890,0.1368,3660.7,3660.6,0.8032]
[1753358417089,4.297,3660.7,3660.6,0.8032]
[1753358417271,0.002,3660.8,3660.6,1.7189]
[1753358417473,7.02871797,3660.7,3660.6,0.8632]
[1753358417791,2.73171797,3660.7,3660.6,0.8632]
[1753358417991,7.02871797,3660.7,3660.6,1.7789]
[1753358418730,4.297,3660.7,3660.6,1.3205]
[1753358418934,7.03066916,3660.8,3660.6,1.7789]
[1753358419248,2.73171797,3660.7,3660.6,0.8632]
[1753358419752,2.73171797,3660.7,3660.6,1.7789]
[1753358420745,7.02771797,3660.7,3660.6,0.5184]
[1753358420947,7.16451797,3660.7,3660.6,0.9835]
[1753358421331,7.16451797,3660.7,3660.6,0.5184]
[1753358422659,7.16451797,3660.7,3660.6,0.06]
[1753358423455,7.59431797,3660.7,3660.6,0.06]
[1753358426138,7.57317943,3660.7,3660.6,0.06]
[1753358427164,7.14337943,3660.7,3660.6,0.06]
[1753358428878,2.84737943,3660.7,3660.6,0.06]
[1753358429173,7.14237943,3660.7,3660.6,0.06]
[1753358429554,8.33327943,3660.7,3660.6,0.06]
[1753358431034,7.90347943,3660.7,3660.6,0.06]
[1753358431373,2.84737943,3660.7,3660.6,0.5443]
[1753358431547,2.84737943,3660.7,3660.6,1.0094]
[1753358431872,7.14137943,3660.7,3660.6,1.0094]
[1753358433234,10.14137943,3660.7,3660.4,0.001]
[1753358433544,6.50286723,3660.5,3660.4,0.061]
[1753358433956,6.93266723,3660.5,3660.4,0.061]
[1753358434464,7.52196815,3660.5,3660.4,0.061]
[1753358435669,10.02486723,3660.5,3660.4,0.061]
[1753358437065,15.39119164,3660.5,3660.4,0.061]
[1753358437369,15.82099164,3660.5,3660.4,0.061]
[1753358439869,5.73186723,3660.5,3660.4,0.061]
[1753358440081,10.02486723,3660.5,3660.4,0.061]
[1753358441050,5.73186723,3660.5,3660.4,0.061]
[1753358441384,7.02486723,3660.5,3660.4,0.061]
[1753358441567,7.02486723,3660.5,3660.4,0.5453]
[1753358441941,7.02486723,3660.5,3660.4,0.061]
[1753358443440,7.16166723,3660.5,3660.4,0.061]
[1753358445118,12.95779164,3660.5,3660.4,0.061]
[1753358446217,13.91659805,3660.5,3660.4,0.061]
[1753358448769,13.54679805,3660.5,3660.4,0.061]
[1753358449406,2.73209114,3660.2,3660.1,0.041]
[1753358449610,16.23921555,3660.2,3660.1,0.041]
[1753358449924,11.94821555,3660.2,3660.1,0.041]
[1753358450068,10.09989114,3660.2,3660.1,0.9904]
[1753358451380,10.09989114,3660.2,3660.1,0.5253]
[1753358451586,10.09989114,3660.2,3660.1,0.9667]
[1753358452567,10.09989114,3660.2,3660.1,0.5253]
[1753358453103,10.09989114,3660.2,3660.1,0.041]
[1753358454470,10.09989114,3660.2,3660.1,0.5253]
[1753358454690,5.80889114,3660.2,3660.1,0.9667]
[1753358454890,10.09889114,3660.2,3660.1,0.9667]
[1753358455095,10.09889114,3660.2,3660.1,0.041]
[1753358455697,10.09889114,3660.2,3660.1,0.5253]
[1753358456275,10.09889114,3660.2,3660.1,0.9667]
[1753358456716,10.09889114,3660.2,3660.1,0.5253]
[1753358457087,10.09889114,3660.2,3660.1,0.041]
[1753358458810,10.09889114,3660.2,3660.1,0.5398]
[1753358459010,10.09889114,3660.2,3660.1,0.9812]
[1753358459576,10.09789114,3660.2,3660.1,0.9812]
[1753358460018,10.09789114,3660.2,3660.1,0.9862]
[1753358460614,10.09789114,3660.2,3660.1,0.5448]
[1753358461614,10.09789114,3660.2,3660.1,0.9862]
[1753358463218,10.09789114,3660.2,3660.1,0.5448]
[1753358466337,10.09789114,3660.2,3660.1,0.046]
[1753358468527,0.1368,3660.2,3660.1,0.9862]
[1753358470833,4.287,3660.4,3660.1,0.9862]
[1753358471143,0.1368,3660.3,3660.1,0.9862]
[1753358471474,0.1368,3660.3,3660.2,0.9402]
[1753358473454,2.8688165,3660.3,3660.2,0.9402]
[1753358474495,0.1368,3660.3,3660.2,0.9402]
[1753358474899,0.1368,3660.3,3660.1,0.046]
[1753358475053,2.73209114,3660.2,3660.1,0.046]
[1753358475450,2.73209114,3660.2,3660.1,0.5448]
[1753358476396,2.73209114,3660.2,3660.1,0.046]
[1753358477657,2.73209114,3660.2,3660.1,0.5448]
[1753358478566,4.4218,3660.3,3660.1,0.9862]
[1753358478983,4.4218,3660.3,3660.2,0.9402]
[1753358479793,0.1368,3660.3,3660.2,0.9402]
[1753358481156,0.1368,3660.3,3660.2,0.9324]
[1753358482258,0.1368,3660.3,3660.2,1.7621]
[1753358482796,4.285,3660.6,3660.2,1.7621]
[1753358482797,0.002,3660.6,3660.5,2.73186723]
[1753358482967,0.002,3660.6,3660.5,4.49396723]
[1753358483359,0.002,3660.6,3660.5,1.7621]
[1753358484085,2.73198666,3660.4,3660.1,0.046]
[1753358484398,2.73209114,3660.2,3660.1,0.046]
[1753358484993,4.283,3660.3,3660.1,0.046]
[1753358485206,3.002,3660.6,3660.1,0.5448]
[1753358485362,4.282,3660.5,3660.2,0.9324]
[1753358485559,2.73199947,3660.4,3660.3,0.4988]
[1753358486194,7.01388013,3660.5,3660.3,0.4988]
[1753358486362,2.73188013,3660.5,3660.3,0.4988]
[1753358486691,7.01394186,3660.4,3660.3,0.4988]
[1753358487200,4.282,3660.4,3660.1,0.046]
[1753358487693,2.73209114,3660.2,3660.1,0.5448]
[1753358487917,2.73202294,3660.3,3660.1,0.5448]
[1753358488479,2.73202294,3660.3,3660.1,0.046]
[1753358489215,4.282,3660.4,3660.2,0.4721]
[1753358489718,4.282,3660.4,3660.3,0.4721]
[1753358490489,7.01394186,3660.4,3660.3,0.4721]
[1753358491077,4.281,3660.4,3660.3,0.4721]
[1753358491776,4.281,3660.4,3660.3,0.9057]
[1753358492793,4.4178,3660.4,3660.3,0.9057]
[1753358494201,4.4178,3660.4,3660.3,0.4721]
[1753358494416,7.14974186,3660.4,3660.3,0.4721]
[1753358494617,4.4178,3660.4,3660.3,0.4721]
[1753358495316,0.1368,3660.4,3660.3,0.4721]
[1753358495822,4.4168,3660.4,3660.3,0.4721]
[1753358496288,0.1368,3660.4,3660.3,0.9057]
[1753358496639,4.4168,3660.4,3660.3,0.9057]
[1753358496921,0.1368,3660.4,3660.3,2.04298045]
[1753358497218,4.282,3660.5,3660.4,2.73194186]
[1753358497219,0.002,3660.5,3660.4,2.73194186]
[1753358497385,0.002,3660.5,3660.4,4.43826127]
[1753358500899,0.002,3660.5,3660.4,8.71726127]
[1753358501094,0.002,3660.5,3660.4,8.68994186]
[1753358501300,0.002,3660.5,3660.4,9.88725574]
[1753358507616,0.002,3660.5,3660.4,23.09358015]
[1753358509144,0.002,3660.5,3660.4,21.89626627]
[1753358510034,1e-08,3660.5,3660.4,21.89626627]
[1753358510412,0.002,3661.5,3661.2,0.55]
[1753358510608,0.002,3661.5,3661.3,8.35987031]
[1753358510847,0.002,3661.5,3661.3,9.57813301]
[1753358511048,0.002,3661.5,3661.3,12.57813301]
[1753358515825,1e-08,3661.4,3661.3,14.84601701]
[1753358516022,1e-08,3661.4,3661.3,14.70921701]
[1753358516856,1e-08,3661.4,3661.3,15.14248701]
[1753358517267,1e-08,3661.4,3661.3,15.34819747]
[1753358517850,1e-08,3661.4,3661.3,18.91022147]
[1753358518054,1e-08,3661.4,3661.3,7.82204347]
[1753358518364,1e-08,3661.4,3661.3,8.95458077]
[1753358518876,1e-08,3661.4,3661.3,8.94368077]
[1753358519081,1e-08,3661.4,3661.3,9.07844303]
[1753358519581,1e-08,3661.4,3661.3,8.94368077]
[1753358520674,1e-08,3661.4,3661.3,0.20571046]
[1753358520994,0.46710001,3661.4,3661.3,4.271]
[1753358521845,1e-08,3661.4,3661.3,4.271]
[1753358522044,1e-08,3661.4,3661.3,5.2021]
[1753358522245,1e-08,3661.4,3661.3,4.271]
[1753358522679,1e-08,3661.4,3661.3,4.7322]
[1753358523985,1e-08,3661.4,3661.3,4.9372862]
[1753358525090,1e-08,3661.4,3661.3,4.4760862]
[1753358525288,1e-08,3661.4,3661.3,4.271]
[1753358525583,1e-08,3661.4,3661.3,7.00227031]
[1753358525881,1e-08,3661.4,3661.3,9.28337031]
[1753358526082,1e-08,3661.4,3661.3,9.62111037]
[1753358526804,1e-08,3661.4,3661.3,12.62111037]
[1753358530490,1e-08,3661.4,3661.3,16.91111037]
[1753358535715,1e-08,3661.4,3661.3,16.90711037]
[1753358536283,1e-08,3661.4,3661.3,12.61711037]
[1753358539728,1e-08,3661.4,3661.3,16.90711037]
[1753358539931,1e-08,3661.4,3661.3,34.86120137]
[1753358540217,0.002,3662.0,3661.9,7.10322279]
[1753358540384,0.002,3662.0,3661.9,16.8723472]
[1753358540714,0.002,3662.0,3661.9,17.7796472]
[1753358540937,0.002,3662.0,3661.9,12.41332279]
[1753358543519,0.4818,3662.9,3662.6,2.73025616]
[1753358543520,0.48087507,3662.9,3662.6,2.73025616]
[1753358543689,0.48087507,3662.9,3662.7,4.265]
[1753358543880,0.48087507,3662.9,3662.7,7.13202605]
[1753358544082,0.4398,3662.8,3662.7,4.4018]
[1753358544392,0.4398,3662.8,3662.7,7.13202633]
[1753358544795,0.4398,3662.8,3662.7,0.1368]
[1753358545001,0.4398,3662.8,3662.7,4.265]
[1753358547035,0.04107507,3662.9,3662.7,4.265]
[1753358547191,0.48087507,3662.9,3662.7,4.265]
[1753358547820,0.04107507,3662.9,3662.8,2.73015179]
[1753358548424,0.04107507,3662.9,3662.7,4.46931053]
[1753358548784,0.04107507,3662.9,3662.8,2.73015179]
[1753358549011,0.04107507,3662.9,3662.7,2.93450413]
[1753358549196,0.04107507,3662.9,3662.8,6.99315179]
[1753358550162,0.04107507,3662.9,3662.8,4.263]
[1753358550433,0.04107507,3662.9,3662.8,6.99315179]
[1753358552120,0.04107507,3662.9,3662.8,7.48235179]
[1753358552321,0.04107507,3662.9,3662.8,8.06525179]
[1753358552994,0.04107507,3662.9,3662.8,7.61915179]
[1753358553192,0.04107507,3662.9,3662.8,8.06525179]
[1753358555556,0.04107507,3662.9,3662.8,8.61525179]
[1753358555770,0.04107507,3662.9,3662.8,9.36825179]
[1753358558229,1e-08,3662.9,3662.8,12.36825179]
[1753358562879,1e-08,3662.9,3662.8,17.7345762]
[1753358563176,1e-08,3662.9,3662.8,7.65915179]
[1753358563382,1e-08,3662.9,3662.8,11.91715179]
[1753358563565,1e-08,3662.9,3662.8,11.42795179]
[1753358563954,1e-08,3662.9,3662.8,7.16995179]
[1753358564159,1e-08,3662.9,3662.8,2.86695179]
[1753358564486,1.25500001,3662.9,3662.8,7.12495179]
[1753358564986,1.25500001,3662.9,3662.8,2.86695179]
[1753358565198,1.25500001,3662.9,3662.8,7.12495179]
[1753358567162,0.43980001,3662.9,3662.8,7.12495179]
[1753358568085,1e-08,3662.9,3662.8,7.12495179]
[1753358568677,0.43980001,3662.9,3662.8,7.12495179]
[1753358570116,1e-08,3662.9,3662.8,7.12495179]
[1753358570494,0.43980001,3662.9,3662.8,7.12495179]
[1753358570690,1e-08,3662.9,3662.8,7.12495179]
[1753358574291,1e-08,3662.9,3662.8,7.61415179]
[1753358574504,1e-08,3662.9,3662.8,8.04525179]
[1753358574894,1e-08,3662.9,3662.8,7.61415179]
[1753358576019,1e-08,3662.9,3662.8,7.12495179]
[1753358577124,1e-08,3662.9,3662.8,7.12595179]
[1753358577918,1e-08,3662.9,3662.8,8.04625179]
[1753358578721,1e-08,3662.9,3662.8,7.55705179]
[1753358579097,1e-08,3662.9,3662.8,7.12595179]
[1753358581288,1e-08,3662.9,3662.8,7.12195179]
[1753358582296,1e-08,3662.9,3662.8,2.86795179]
[1753358582539,1e-08,3662.9,3662.8,8.00975179]
[1753358583610,1e-08,3662.9,3662.8,9.38125179]
[1753358584354,1e-08,3662.9,3662.8,32.5214062]
[1753358585263,1e-08,3662.9,3662.8,17.7475762]
[1753358586038,1e-08,3662.9,3662.8,12.38125179]
[1753358586567,1e-08,3662.9,3662.8,17.56551579]
[1753358589741,1e-08,3662.9,3662.8,12.38125179]
[1753358590066,1e-08,3662.9,3662.8,33.60120679]
[1753358590246,1e-08,3662.9,3662.8,29.67356879]
[1753358591775,1e-08,3662.9,3662.8,20.76816079]
[1753358592970,1e-08,3662.9,3662.8,17.22839779]
[1753358593150,1e-08,3662.9,3662.8,16.14600579]
[1753358595574,1e-08,3662.9,3662.8,20.43600579]
[1753358597970,1e-08,3662.9,3662.8,20.43100579]
[1753358598681,1e-08,3662.9,3662.8,19.97330579]
[1753358598879,1e-08,3662.9,3662.8,20.43100579]
[1753358599801,1e-08,3662.9,3662.8,20.43000579]
[1753358602094,1e-08,3662.9,3662.8,18.81963979]
[1753358602502,1e-08,3662.9,3662.8,19.26223979]
[1753358602884,1e-08,3662.9,3662.8,19.33823979]
[1753358603908,1e-08,3662.9,3662.8,10.70795179]
[1753358604060,1e-08,3662.9,3662.8,14.40395179]
[1753358604266,0.45370001,3662.9,3662.8,14.40395179]
[1753358604689,0.45370001,3662.9,3662.8,0.1378]
[1753358604897,1.57610001,3662.9,3662.8,4.247]
[1753358605562,1.57610001,3662.9,3662.8,6.97715179]
[1753358605975,1.57610001,3662.9,3662.8,4.247]
[1753358606168,1.57610001,3662.9,3662.8,6.97715179]
[1753358606599,1.20630001,3662.9,3662.8,6.97715179]
[1753358607616,1e-08,3662.9,3662.8,7.66395179]
[1753358608724,0.45370001,3662.9,3662.8,7.66395179]
[1753358609499,1e-08,3662.9,3662.8,7.66395179]
[1753358613223,0.45370001,3662.9,3662.8,7.66395179]
[1753358613390,0.45370001,3662.9,3662.8,7.11395179]
[1753358613913,0.45370001,3662.9,3662.8,7.11195179]
[1753358614424,0.45370001,3662.9,3662.8,4.3818]
[1753358614922,0.45370001,3662.9,3662.8,7.11195179]
[1753358615222,0.45370001,3662.9,3662.8,4.3818]
[1753358615425,1.61300001,3662.9,3662.8,0.001]
[1753358615726,1.61300001,3662.9,3662.8,4.245]
[1753358615891,1.61300001,3662.9,3662.8,0.001]
[1753358616091,4.34307727,3662.9,3662.8,0.001]
[1753358617025,1.61300001,3662.9,3662.8,0.001]
[1753358619010,4.34307727,3662.9,3662.8,0.001]
[1753358619202,9.70940168,3662.9,3662.8,0.001]
[1753358619606,13.95240168,3662.9,3662.8,0.001]
[1753358620628,8.58607727,3662.9,3662.8,0.001]
[1753358622250,1.61300001,3662.9,3662.8,0.001]
[1753358625654,4.34307727,3662.9,3662.8,0.001]
[1753358625842,1.61300001,3662.9,3662.8,0.001]
[1753358627616,4.34307727,3662.9,3662.8,0.001]
[1753358628954,4.47987727,3662.9,3662.8,0.001]
[1753358634041,1.37080001,3662.9,3662.8,0.001]
[1753358634242,8.71067727,3662.9,3662.8,0.001]
[1753358638266,5.61080001,3662.9,3662.8,0.001]
[1753358639082,8.34087727,3662.9,3662.8,0.001]
[1753358640006,8.71067727,3662.9,3662.8,0.001]
[1753358640415,8.34087727,3662.9,3662.8,0.001]
[1753358640778,5.61080001,3662.9,3662.8,0.001]
[1753358640972,0.92630001,3662.9,3662.8,0.001]
[1753358641173,5.60980001,3662.9,3662.8,0.001]
[1753358641376,8.33987727,3662.9,3662.8,0.001]
[1753358641894,5.60980001,3662.9,3662.8,0.001]
[1753358642093,8.33987727,3662.9,3662.8,0.001]
[1753358642610,5.60980001,3662.9,3662.8,0.001]
[1753358642808,0.13680001,3662.9,3662.8,0.001]
[1753358643009,4.37480001,3662.9,3662.8,0.001]
[1753358643783,0.13680001,3662.9,3662.8,0.001]
[1753358644000,1e-08,3662.9,3662.8,0.4898]
[1753358645635,1e-08,3662.9,3662.8,0.001]
[1753358648723,1e-08,3662.9,3662.8,0.4898]
[1753358650058,1e-08,3662.9,3662.8,3.69265179]
[1753358650213,1e-08,3662.9,3662.8,4.45645179]
[1753358651750,1e-08,3662.9,3662.8,1.7263]
[1753358652865,1e-08,3662.9,3662.8,0.001]
[1753358653450,2.73007727,3662.9,3662.8,0.001]
[1753358653767,1e-08,3662.9,3662.8,0.001]
[1753358655351,1e-08,3662.9,3662.8,3.69265179]
[1753358655566,1e-08,3662.9,3662.8,4.49865179]
[1753358656276,1e-08,3662.9,3662.8,1.7685]
[1753358656769,1e-08,3662.9,3662.8,4.49865179]
[1753358657369,1e-08,3662.9,3662.8,1.7685]
[1753358657667,1e-08,3662.9,3662.8,4.49865179]
[1753358658728,1e-08,3662.9,3662.8,4.63545179]
[1753358661292,1e-08,3662.9,3662.8,0.6266]
[1753358661566,1e-08,3662.9,3662.8,3.35675179]
[1753358662274,1e-08,3662.9,3662.8,0.001]
[1753358662774,0.44610001,3662.9,3662.8,0.001]
[1753358663777,1e-08,3662.9,3662.8,0.001]
[1753358664352,1e-08,3662.9,3662.8,2.73115179]
[1753358664558,1e-08,3662.9,3662.8,3.21995179]
[1753358665682,1e-08,3662.9,3662.8,5.0659533]
[1753358665848,1e-08,3662.9,3662.8,5.2027533]
[1753358668273,1e-08,3662.9,3662.8,9.40645179]
[1753358668979,1e-08,3662.9,3662.8,7.57835179]
[1753358669475,1e-08,3662.9,3662.8,8.04095179]
[1753358670783,1e-08,3662.9,3662.8,3.80995179]
[1753358671005,1e-08,3662.9,3662.8,8.03995179]
[1753358671148,1e-08,3662.9,3662.8,7.57735179]
[1753358671580,1e-08,3662.9,3662.8,8.03995179]
[1753358676386,1e-08,3662.9,3662.8,8.03895179]
[1753358678284,1e-08,3662.9,3662.8,3.80995179]
[1753358678487,1e-08,3662.9,3662.8,8.03795179]
[1753358683203,1e-08,3662.9,3662.8,8.03695179]
[1753358683902,1e-08,3662.9,3662.8,3.80995179]
[1753358684073,1e-08,3662.9,3662.8,8.03695179]
[1753358684505,1e-08,3662.9,3662.8,8.24555826]
[1753358684683,1e-08,3662.9,3662.8,7.78295826]
[1753358686088,1e-08,3662.9,3662.8,7.30255826]
[1753358686486,1e-08,3662.9,3662.8,7.78195826]
[1753358688126,1e-08,3662.9,3662.8,8.24455826]
[1753358688719,1e-08,3662.9,3662.8,7.76515826]
[1753358689024,1e-08,3662.9,3662.8,8.24455826]
[1753358692222,1e-08,3662.9,3662.8,8.03595179]
[1753358692622,1e-08,3662.9,3662.8,8.24136696]
[1753358694247,1e-08,3662.9,3662.8,0.001]
[1753358694432,1e-08,3662.9,3662.8,4.225]
[1753358694731,1e-08,3662.9,3662.8,6.95515179]
[1753358695140,1e-08,3662.9,3662.8,7.43455179]
[1753358697528,1e-08,3662.9,3662.8,4.225]
[1753358697714,0.44860001,3662.9,3662.8,4.224]
[1753358698700,0.44860001,3662.9,3662.8,0.001]
[1753358699108,0.44860001,3662.9,3662.8,6.95415179]
[1753358699493,0.44860001,3662.9,3662.8,4.224]
[1753358700329,0.44860001,3662.9,3662.8,0.001]
[1753358700556,4.49487727,3662.9,3662.8,0.001]
[1753358700755,9.86120168,3662.9,3662.8,0.001]
[1753358701211,12.86120168,3662.9,3662.8,0.001]
[1753358701414,13.41120168,3662.9,3662.8,1e-08]
[1753358702048,13.56467178,3662.9,3662.8,1e-08]
[1753358702220,13.82044749,3662.9,3662.8,1e-08]
[1753358702424,13.41120168,3662.9,3662.8,1e-08]
[1753358702663,12.86120168,3662.9,3662.8,1e-08]
[1753358702962,17.08320168,3662.9,3662.8,1e-08]
[1753358703128,17.67226164,3662.9,3662.8,1e-08]
[1753358703467,17.08320168,3662.9,3662.8,1e-08]
[1753358703649,17.67190897,3662.9,3662.8,1e-08]
[1753358704019,13.44990897,3662.9,3662.8,1e-08]
[1753358704270,17.67190897,3662.9,3662.8,1e-08]
[1753358706916,7.71378456,3662.9,3662.8,1e-08]
[1753358707132,11.71587727,3662.9,3662.8,1e-08]
[1753358707360,12.85371189,3662.9,3662.8,1e-08]
[1753358709926,2.73067365,3662.1,3662.0,0.001]
[1753358710153,16.76519806,3662.1,3662.0,1e-08]
[1753358710453,17.58359806,3662.1,3662.0,1e-08]
[1753358711160,2.73141951,3661.1,3660.1,0.046]
[1753358711358,2.86889114,3660.2,3660.1,0.046]
[1753358711535,7.08989114,3660.2,3660.1,0.046]
[1753358712159,7.53849114,3660.2,3660.1,0.046]
[1753358712666,7.90829114,3660.2,3660.1,0.046]
[1753358712960,8.66319114,3660.2,3660.1,1e-08]
[1753358713119,14.02951555,3660.2,3660.1,1e-08]
[1753358713315,9.67171555,3660.2,3660.1,1e-08]
[1753358713535,8.52639114,3660.2,3660.1,1e-08]
[1753358713832,13.89271555,3660.2,3660.1,1e-08]
[1753358714170,0.7549,3659.9,3659.6,0.001]
[1753358714457,5.73253907,3659.6,3659.4,0.001]
[1753358714656,11.85391282,3659.4,3659.2,0.001]
[1753358715023,16.89331282,3659.4,3659.2,0.001]
[1753358715622,7.30598841,3659.4,3659.2,0.001]
[1753358715823,6.93618841,3659.4,3659.2,0.001]
[1753358716153,11.15718841,3659.4,3659.2,0.001]
[1753358716457,10.70958841,3659.4,3659.2,0.001]
[1753358716652,3.0,3659.4,3659.2,0.001]
[1753358716955,3.54239168,3659.8,3659.3,0.4985]
[1753358717154,4.222,3659.7,3659.3,0.4985]
[1753358717334,4.222,3659.6,3659.4,0.4975]
[1753358717531,0.81,3660.1,3659.4,0.4975]
[1753358717832,2.01655676,3660.3,3659.5,0.4474]
[1753358717833,4.222,3660.0,3659.5,0.4474]
[1753358718033,2.01655676,3660.3,3659.3,0.001]
[1753358718353,6.95414408,3660.2,3659.6,0.4975]
[1753358718553,4.222,3660.2,3659.6,3.2299939]
[1753358718855,4.222,3660.1,3659.7,0.9449]
[1753358719072,4.222,3660.1,3659.8,0.9449]
[1753358719220,4.222,3660.1,3659.5,2.7325448]
[1753358719221,2.01655676,3660.3,3659.9,0.4975]
[1753358719424,4.222,3660.2,3660.0,0.4975]
[1753358719638,4.222,3660.2,3660.0,0.4474]
[1753358719838,4.222,3660.2,3659.7,2.73243981]
[1753358720042,4.222,3660.2,3659.6,2.73252923]
[1753358720240,4.222,3660.1,3659.8,0.9449]
[1753358720447,2.73211499,3660.2,3659.8,0.4474]
[1753358720769,4.222,3660.1,3659.9,0.9551]
[1753358721071,2.73191794,3660.5,3660.0,0.9551]
[1753358721277,2.73191794,3660.5,3660.1,0.4975]
[1753358721427,4.6728,3660.4,3659.8,0.4975]
[1753358721629,9.29327512,3661.3,3659.3,0.001]
[1753358721630,5.36632441,3660.1,3659.3,0.001]
[1753358721878,4.222,3660.0,3659.3,0.001]
[1753358722159,2.73268841,3659.4,3659.3,0.001]
[1753358722460,6.95468841,3659.4,3659.3,0.001]
[1753358722958,4.222,3659.4,3659.3,0.001]
[1753358723146,7.78158841,3659.4,3659.3,0.001]
[1753358723348,11.73898841,3659.4,3659.3,0.001]
[1753358723669,11.73898841,3659.4,3659.2,0.001]
[1753358723670,5.73276309,3659.3,3659.2,0.001]
[1753358724044,6.55336309,3659.3,3659.2,0.001]
[1753358725343,6.55336309,3659.3,3659.2,1e-08]
[1753358725580,7.34566309,3659.3,3659.2,1e-08]
[1753358725942,7.34566309,3659.3,3658.9,0.001]
[1753358726146,6.53716184,3658.9,3658.8,0.001]
[1753358726341,10.89596184,3658.9,3658.8,0.001]
[1753358726529,11.71656184,3658.9,3658.8,0.001]
[1753358726732,5.73313654,3658.8,3658.7,1e-08]
[1753358727067,5.73358482,3658.2,3658.1,0.04]
[1753358727282,10.09238482,3658.2,3658.1,0.04]
[1753358727489,10.91298482,3658.2,3658.1,0.04]
[1753358729292,10.09238482,3658.2,3658.1,0.04]
[1753358729470,10.91298482,3658.2,3658.1,0.04]
[1753358731060,10.09338482,3658.2,3658.1,0.04]
[1753358731749,10.54418482,3658.2,3658.1,0.04]
[1753358731982,10.91398482,3658.2,3658.1,0.04]
[1753358732365,10.54418482,3658.2,3658.1,0.04]
[1753358732944,18.66466655,3658.2,3658.1,1e-08]
[1753358733378,10.91398482,3658.2,3658.1,1e-08]
[1753358733558,6.32118482,3658.2,3658.1,1e-08]
[1753358733762,10.54318482,3658.2,3658.1,1e-08]
[1753358734310,10.91298482,3658.2,3658.1,1e-08]
[1753358735088,18.66366655,3658.2,3658.1,1e-08]
[1753358735486,19.24828559,3658.2,3658.1,1e-08]
[1753358735688,18.66366655,3658.2,3658.1,1e-08]
[1753358735896,19.2482825,3658.2,3658.1,1e-08]
[1753358736493,7.10800901,3657.9,3657.8,1e-08]
[1753358736650,11.46680901,3657.9,3657.8,1e-08]
[1753358736857,12.87202496,3657.9,3657.8,1e-08]
[1753358739020,7.27942496,3657.9,3657.8,1e-08]
[1753358739192,11.50242496,3657.9,3657.8,1e-08]
[1753358739514,11.95322496,3657.9,3657.8,1e-08]
[1753358739722,2.73433227,3657.2,3657.1,0.04]